bitfinex-derivatives/quotes_ETHF0:USTF0_20260226
["timestamp","ask_amount","ask_price","bid_price","bid_amount"]
[1772122795253,1.4930778,2027.0,2026.3,1.4691762]
[1772122795453,1.49775173,2027.2,2026.3,1.4691762]
[1772122799150,0.00467393,2027.2,2026.3,1.4691762]
[1772122799349,1.49775173,2027.2,2026.3,1.4691762]
[1772122802351,0.00467393,2027.2,2026.3,1.4691762]
[1772122802657,1.49775173,2027.2,2026.3,1.4691762]
[1772122802958,1.74439173,2027.2,2026.3,0.00374246]
[1772122803559,1.74439173,2027.2,2026.3,1.4691762]
[1772122804152,1.49775173,2027.2,2026.3,1.4691762]
[1772122805060,0.00467393,2027.2,2026.5,1.46543374]
[1772122805358,1.4930778,2027.6,2026.5,1.46543374]
[1772122806159,1.49853019,2027.6,2026.5,1.46543374]
[1772122806761,1.49853019,2027.6,2026.7,1.46543374]
[1772122808858,1.49853019,2027.6,2026.6,6.464]
[1772122809258,1.49853019,2027.6,2026.7,1.46543374]
[1772122810360,1.49853019,2027.6,2026.9,1.36744778]
[1772122812466,0.00545239,2027.6,2026.9,1.36744778]
[1772122813160,1.36419844,2027.6,2026.7,1.36744778]
[1772122813360,1.61078844,2027.6,2026.5,1.36744778]
[1772122816664,1.36419844,2027.6,2026.5,1.36744778]
[1772122817969,1.35874605,2027.4,2026.4,7.83144778]
[1772122818569,1.35874605,2027.4,2026.5,1.36744778]
[1772122820072,0.00545239,2027.6,2026.5,1.61415778]
[1772122820273,0.00545239,2027.6,2026.9,1.36744778]
[1772122820672,1.36419844,2027.6,2026.9,1.36744778]
[1772122820967,0.00545239,2027.6,2027.0,1.36744778]
[1772122823673,1.36419844,2027.6,2026.5,1.36744778]
[1772122823968,1.36419844,2027.6,2026.7,1.36744778]
[1772122824269,1.61078844,2027.6,2026.7,1.36744778]
[1772122824572,1.61078844,2027.6,2026.5,1.36744778]
[1772122824772,1.35874605,2027.3,2026.3,7.83519024]
[1772122826271,1.35874605,2027.1,2026.3,0.00374246]
[1772122827368,1.35874605,2027.1,2026.3,1.37119024]
[1772122827780,1.35874605,2026.9,2025.9,1.36744778]
[1772122828967,1.35874605,2026.9,2025.9,1.61839909]
[1772122829270,1.35874605,2027.1,2025.9,1.61839909]
[1772122829471,1.35874605,2027.4,2026.2,1.36744778]
[1772122829666,1.35874605,2027.4,2026.1,1.84032469]
[1772122829667,1.35874605,2027.4,2026.4,1.36744778]
[1772122829868,1.35874605,2027.4,2026.5,1.36744778]
[1772122830468,1.35874605,2027.2,2026.4,1.36744778]
[1772122831675,1.35874605,2027.4,2026.4,1.36744778]
[1772122834772,1.35874605,2027.4,2026.6,1.35665136]
[1772122834975,1.47225433,2027.6,2026.6,1.35665136]
[1772122836171,1.46680194,2027.4,2026.4,1.35665136]
[1772122839568,1.46680194,2027.4,2026.5,7.93925394]
[1772122840375,0.00545239,2027.6,2026.6,1.47525394]
[1772122840580,1.42878521,2027.6,2026.9,1.47525394]
[1772122840972,1.42878521,2027.6,2026.8,6.464]
[1772122841174,1.42878521,2027.6,2026.8,7.93925394]
[1772122842176,1.42878521,2027.6,2026.9,1.47525394]
[1772122842378,0.00545239,2027.6,2026.9,1.47525394]
[1772122842683,1.42878521,2027.6,2026.9,1.47525394]
[1772122846183,0.00545239,2027.6,2026.9,1.47525394]
[1772122846378,1.42878521,2027.6,2026.9,1.47525394]
[1772122848482,1.42878521,2027.6,2026.7,1.47525394]
[1772122849183,1.67538521,2027.6,2026.7,1.47525394]
[1772122850374,1.67538521,2027.6,2026.5,7.93925394]
[1772122850775,1.67538521,2027.6,2026.6,1.47525394]
[1772122851175,1.42878521,2027.6,2026.6,1.47525394]
[1772122854385,0.2466,2027.5,2026.6,1.47525394]
[1772122854586,1.42333282,2027.4,2026.6,1.47525394]
[1772122858881,1.42333282,2027.2,2026.4,1.47525394]
[1772122859082,1.42333282,2027.0,2026.2,1.47525394]
[1772122860690,1.42333282,2027.2,2026.2,1.47525394]
[1772122861091,1.66997282,2027.2,2026.2,1.47525394]
[1772122862887,1.42333282,2027.5,2026.2,1.47525394]
[1772122863093,1.42333282,2027.3,2026.4,1.47525394]
[1772122863586,1.42333282,2027.5,2026.4,1.47525394]
[1772122863789,1.42333282,2027.5,2026.6,1.47525394]
[1772122863994,1.42878521,2027.6,2026.6,1.47525394]
[1772122864490,0.00545239,2027.6,2026.6,1.47525394]
[1772122864684,0.00545239,2027.6,2026.8,1.47525394]
[1772122864994,0.00545239,2027.6,2027.0,1.47525394]
[1772122865789,1.42333282,2028.1,2027.0,1.47525394]
[1772122866893,1.42703676,2028.1,2027.0,1.47525394]
[1772122867295,0.00370394,2028.1,2027.1,1.47525394]
[1772122867597,0.00370394,2028.1,2027.3,1.47525394]
[1772122867892,0.00370394,2028.1,2027.5,1.47525394]
[1772122868284,0.00370394,2028.1,2027.5,1.48055498]
[1772122869289,2.00623786,2028.9,2027.5,1.48055498]
[1772122869290,1.42333282,2028.8,2027.7,1.47525394]
[1772122869590,1.42333282,2028.8,2027.9,1.47525394]
[1772122869797,1.37234741,2029.0,2028.0,1.45266692]
[1772122870391,1.37620122,2029.0,2028.0,1.45266692]
[1772122871095,1.37234741,2028.6,2027.8,1.45266692]
[1772122871391,1.37234741,2028.2,2027.5,0.00530104]
[1772122872092,1.37234741,2028.0,2027.1,6.463]
[1772122872296,1.37234741,2028.0,2027.0,1.45266692]
[1772122873296,1.37234741,2027.8,2027.0,0.006126]
[1772122873896,1.37234741,2027.8,2027.0,1.45879292]
[1772122874198,1.37234741,2027.6,2026.5,7.91566692]
[1772122874397,1.37234741,2027.6,2026.6,1.45266692]
[1772122875490,1.37234741,2027.6,2026.6,1.45751227]
[1772122876402,1.37234741,2027.4,2026.6,0.00484535]
[1772122876594,1.37234741,2027.2,2026.1,1.45266692]
[1772122877599,1.37234741,2027.2,2026.2,1.45266692]
[1772122877600,1.37834922,2027.2,2026.2,1.45266692]
[1772122877803,0.00600181,2027.2,2026.5,1.45266692]
[1772122878101,0.00600181,2027.2,2026.6,1.45266692]
[1772122878794,1.37834922,2027.2,2026.6,1.45266692]
[1772122879601,1.37834922,2027.2,2026.5,6.463]
[1772122880095,1.37834922,2027.2,2026.6,1.45266692]
[1772122880294,0.00600181,2027.2,2026.6,1.45266692]
[1772122880794,1.37234741,2027.6,2026.6,1.45266692]
[1772122881799,1.37844547,2027.6,2026.6,1.45266692]
[1772122883097,0.00609806,2027.6,2026.6,1.45266692]
[1772122883598,0.00609806,2027.6,2026.8,1.45266692]
[1772122883903,1.37234741,2028.3,2027.0,1.84032469]
[1772122884094,1.37234741,2028.3,2027.2,1.45266692]
[1772122885000,1.37872121,2028.3,2027.2,1.45266692]
[1772122886100,1.37234741,2028.1,2027.2,1.45266692]
[1772122886502,0.0063738,2028.3,2027.2,1.45266692]
[1772122886503,1.37872121,2028.3,2027.2,1.45266692]
[1772122887399,1.37872121,2028.3,2027.2,1.69929692]
[1772122887605,0.0063738,2028.3,2027.4,1.69927692]
[1772122888001,1.37872121,2028.3,2027.4,1.45266692]
[1772122888205,1.62522121,2028.3,2027.4,1.45266692]
[1772122888601,1.62522121,2028.3,2027.2,1.45266692]
[1772122888803,1.37234741,2027.8,2027.1,6.463]
[1772122889106,1.37234741,2027.8,2027.0,1.45266692]
[1772122892008,1.37234741,2028.0,2027.0,1.45266692]
[1772122892803,1.61888741,2028.0,2027.1,1.45266692]
[1772122894309,1.61888741,2028.0,2026.9,1.45266692]
[1772122894810,1.61888741,2028.0,2026.4,10.16917072]
[1772122895004,1.40912154,2027.6,2026.6,1.46507486]
[1772122896305,1.40912154,2028.2,2026.6,1.46507486]
[1772122896609,1.40912154,2027.8,2026.6,1.46507486]
[1772122896810,0.24655,2027.9,2026.6,1.46507486]
[1772122896811,1.40912154,2027.6,2026.6,1.46507486]
[1772122899819,1.34841062,2027.4,2026.6,1.46507486]
[1772122900112,1.34841062,2027.4,2026.4,1.36915625]
[1772122900815,1.34841062,2027.6,2026.4,1.36915625]
[1772122903218,1.34841062,2027.6,2026.5,1.61587625]
[1772122904122,0.0063738,2028.3,2027.0,1.36915625]
[1772122904123,1.34841062,2027.8,2027.0,1.36915625]
[1772122904322,1.34841062,2028.0,2027.1,1.36915625]
[1772122907716,1.34841062,2028.2,2027.1,1.36915625]
[1772122908312,0.0063738,2028.3,2027.2,0.24663]
[1772122908512,0.0063738,2028.3,2027.3,1.36915625]
[1772122909020,2.28490817,2028.8,2027.7,1.36915625]
[1772122909021,1.34841062,2028.7,2027.7,1.36915625]
[1772122909212,1.34841062,2029.2,2028.1,1.36915625]
[1772122909417,1.34841062,2029.2,2028.3,1.36915625]
[1772122910115,1.35235156,2029.2,2028.3,1.37415243]
[1772122910622,1.34841062,2029.0,2027.9,1.36915625]
[1772122911419,1.34841062,2028.6,2027.7,1.36915625]
[1772122911622,1.34841062,2028.6,2027.7,0.00591732]
[1772122914033,1.34841062,2028.6,2027.7,1.37507357]
[1772122914525,1.34841062,2028.4,2027.7,0.00591732]
[1772122915214,1.34841062,2028.2,2027.3,1.36915625]
[1772122916226,1.34841062,2028.2,2026.9,6.462]
[1772122916524,1.34841062,2028.0,2027.3,0.00564534]
[1772122916918,6.06343,2028.5,2027.3,1.37480159]
[1772122916919,1.34841062,2028.5,2027.3,1.37480159]
[1772122919129,1.34841062,2028.3,2027.3,1.37480159]
[1772122919724,1.34841062,2028.8,2027.3,1.37480159]
[1772122919924,1.34841062,2028.8,2027.5,1.36915625]
[1772122920725,1.34841062,2028.8,2027.7,1.36915625]
[1772122921526,1.34841062,2029.1,2027.9,1.36915625]
[1772122922418,1.34841062,2029.1,2027.9,1.61569625]
[1772122922925,1.34841062,2029.5,2028.4,1.36915625]
[1772122923224,1.34841062,2029.5,2028.6,1.36915625]
[1772122923426,1.34841062,2029.8,2028.6,1.36915625]
[1772122923929,1.34841062,2030.2,2028.6,1.36915625]
[1772122924129,0.00559523,2029.8,2028.6,1.36915625]
[1772122924325,0.00559523,2029.8,2028.8,1.36915625]
[1772122924724,0.00559523,2029.8,2028.8,1.37492256]
[1772122925726,3.37010418,2030.3,2029.0,1.36915625]
[1772122925922,1.34841062,2030.2,2029.2,1.36915625]
[1772122926229,1.34841062,2030.8,2029.4,1.36915625]
[1772122926425,1.34841062,2030.8,2029.6,1.36915625]
[1772122926831,1.352635,2030.8,2029.6,1.36915625]
[1772122927328,1.352635,2030.8,2029.8,1.36915625]
[1772122927521,0.00422438,2030.8,2030.0,1.36915625]
[1772122927924,1.34841062,2031.2,2030.0,1.36915625]
[1772122929234,1.35463903,2031.2,2030.0,1.36915625]
[1772122929729,0.00622841,2031.2,2030.0,1.36915625]
[1772122930438,1.31244698,2031.7,2030.2,1.35327331]
[1772122930633,1.31244698,2031.5,2030.2,1.35327331]
[1772122931141,1.31244698,2031.3,2030.2,1.35327331]
[1772122931434,1.3169896,2031.3,2030.2,1.35327331]
[1772122934739,1.3169896,2031.3,2030.3,1.35327331]
[1772122934928,1.3169896,2031.3,2030.3,1.35860962]
[1772122937236,1.31244698,2031.1,2030.1,1.35327331]
[1772122937444,1.31244698,2031.1,2029.6,1.35327331]
[1772122937638,1.31244698,2030.9,2029.6,1.35327331]
[1772122938239,0.00454262,2031.3,2029.6,1.35327331]
[1772122938240,1.31244698,2030.7,2029.6,1.35327331]
[1772122938442,1.31244698,2030.7,2029.6,1.35863997]
[1772122938934,1.31244698,2030.9,2029.6,1.35863997]
[1772122939139,1.31244698,2031.2,2029.8,1.35327331]
[1772122940344,1.55859698,2031.2,2029.8,1.35327331]
[1772122940940,1.31244698,2031.2,2030.0,1.35327331]
[1772122941244,0.00454262,2031.3,2029.9,7.24372107]
[1772122941245,0.00454262,2031.3,2030.4,1.35327331]
[1772122941737,1.3169896,2031.3,2030.4,1.35327331]
[1772122942141,1.5631296,2031.3,2030.1,6.454]
[1772122942341,1.5631296,2031.3,2030.2,1.35327331]
[1772122942540,1.31244698,2030.8,2029.3,0.24637]
[1772122942734,1.31244698,2030.8,2029.7,1.35327331]
[1772122942933,6.05966262,2031.3,2029.7,1.35327331]
[1772122942934,1.31244698,2030.6,2029.7,1.35327331]
[1772122944543,6.05966262,2031.3,2029.6,0.00536666]
[1772122944544,1.31244698,2030.4,2029.6,0.00536666]
[1772122944738,1.31244698,2030.2,2029.6,0.00536666]
[1772122945444,1.31244698,2030.0,2029.2,1.35327331]
[1772122946541,1.31244698,2030.0,2028.4,1.35327331]
[1772122946842,1.31244698,2030.0,2029.0,1.35327331]
[1772122947140,1.31244698,2029.6,2028.9,0.00553591]
[1772122947446,1.31244698,2029.6,2028.9,1.35880922]
[1772122947646,1.31789218,2029.6,2028.9,1.35880922]
[1772122947840,1.31789218,2029.6,2028.9,0.00553591]
[1772122948539,1.31789218,2029.6,2028.1,1.35327331]
[1772122948540,1.31244698,2029.4,2028.1,1.35327331]
[1772122949246,1.31244698,2029.2,2028.1,1.35327331]
[1772122949642,1.31244698,2029.2,2028.1,1.35727739]
[1772122950549,0.0054452,2029.6,2028.1,1.60378739]
[1772122950550,1.31244698,2029.5,2028.1,1.60378739]
[1772122950748,1.31244698,2029.5,2028.3,1.35327331]
[1772122951248,1.31244698,2029.5,2028.5,1.35327331]
[1772122951643,0.0054452,2029.6,2028.5,1.35327331]
[1772122951844,0.0054452,2029.6,2028.8,1.35327331]
[1772122954052,1.31244698,2030.2,2029.1,1.35327331]
[1772122954348,1.31244698,2030.2,2029.3,1.35327331]
[1772122954650,1.31244698,2030.7,2029.3,1.35327331]
[1772122954850,1.42018453,2030.5,2029.3,1.35327331]
[1772122955051,1.4244784,2030.5,2029.3,1.35327331]
[1772122956045,1.42018453,2030.1,2028.8,1.31682763]
[1772122956342,1.42018453,2030.1,2029.0,1.31682763]
[1772122960048,1.41797744,2030.3,2029.0,1.31682763]
[1772122960844,1.66423744,2030.3,2029.0,1.31682763]
[1772122961053,1.41797744,2030.2,2029.2,1.39051601]
[1772122961651,1.41797744,2030.2,2028.8,6.70243]
[1772122961652,1.41797744,2030.0,2028.9,1.39051601]
[1772122964151,1.41797744,2030.4,2029.1,1.39051601]
[1772122965252,0.00429387,2030.5,2029.1,1.39051601]
[1772122965253,1.41797744,2030.2,2029.1,1.39051601]
[1772122965452,1.41797744,2030.2,2029.2,1.39051601]
[1772122970263,1.41797744,2030.0,2028.9,1.39051601]
[1772122971153,1.83993459,2030.5,2028.9,1.39051601]
[1772122971154,1.41797744,2029.8,2028.9,1.39051601]
[1772122971853,1.41797744,2030.2,2028.9,1.39051601]
[1772122972054,1.41797744,2030.2,2029.0,1.39051601]
[1772122973960,1.41797744,2030.2,2029.0,1.63692601]
[1772122974861,1.41797744,2030.2,2029.3,1.39051601]
[1772122975055,1.41797744,2030.2,2029.5,1.39051601]
[1772122975256,1.41797744,2030.2,2029.2,7.84651601]
[1772122975457,0.24631,2029.9,2028.9,1.39051601]
[1772122975656,1.41797744,2029.8,2028.9,1.39051601]
[1772122977054,1.41797744,2029.6,2028.8,6.456]
[1772122977254,1.41797744,2029.6,2028.8,7.84651601]
[1772122977659,1.41797744,2029.6,2028.9,1.39051601]
[1772122978455,1.41797744,2029.6,2028.5,1.39051601]
[1772122978758,1.41797744,2029.6,2028.7,1.39051601]
[1772122980359,1.41797744,2029.9,2028.9,1.39051601]
[1772122980560,1.41797744,2030.1,2029.0,1.39051601]
[1772122980862,1.41797744,2030.1,2028.9,1.83564072]
[1772122980863,1.41797744,2030.1,2029.2,1.39051601]
[1772122981257,1.41797744,2030.3,2029.2,1.39051601]
[1772122982055,1.41797744,2030.3,2029.3,7.84651601]
[1772122982257,1.41797744,2030.3,2029.4,1.39051601]
[1772122982563,1.42227131,2030.5,2029.4,1.39051601]
[1772122982966,1.42227131,2030.5,2029.5,7.84651601]
[1772122983267,1.42227131,2030.5,2029.6,1.39051601]
[1772122983564,1.42227131,2030.5,2029.6,1.39426003]
[1772122984165,0.00429387,2030.5,2029.6,1.39426003]
[1772122984559,0.00429387,2030.5,2029.8,1.39051601]
[1772122984760,1.42227131,2030.5,2029.8,1.39051601]
[1772122985160,0.00429387,2030.5,2029.8,1.39051601]
[1772122986764,1.41797744,2031.0,2029.9,1.39051601]
[1772122987758,1.4238203,2031.0,2029.9,1.39051601]
[1772122988768,0.00584286,2031.0,2030.0,0.24629]
[1772122989060,0.00584286,2031.0,2030.2,1.39051601]
[1772122989969,1.37300588,2031.3,2030.2,1.39051601]
[1772122990165,0.24611,2031.6,2030.3,1.37474297]
[1772122990166,0.24615,2031.2,2030.3,1.37474297]
[1772122990371,1.37300588,2031.1,2030.3,1.37474297]
[1772122990874,1.37300588,2031.6,2030.3,1.37474297]
[1772122991373,1.37733979,2031.6,2030.3,1.37474297]
[1772122992366,1.37300588,2031.4,2030.4,7.82874297]
[1772122992569,1.37300588,2031.4,2030.5,1.37474297]
[1772122993273,1.37733979,2031.6,2030.6,1.37474297]
[1772122995073,1.62343979,2031.6,2030.6,1.37474297]
[1772122995977,1.37733979,2031.6,2030.6,1.37474297]
[1772122997884,1.37300588,2031.4,2030.6,1.37474297]
[1772122998282,1.37300588,2031.0,2030.0,1.37474297]
[1772122998479,6.05512,2031.3,2029.6,6.45674402]
[1772122998480,1.37300588,2030.8,2029.7,1.37474297]
[1772122999087,1.37300588,2030.6,2029.7,1.37474297]
[1772122999478,1.37300588,2030.9,2029.7,1.37474297]
[1772122999681,1.37300588,2030.9,2029.8,1.37474297]
[1772122999883,1.37300588,2030.7,2029.8,1.37474297]
[1772123000078,1.37300588,2030.7,2029.6,7.83148699]
[1772123000286,1.37300588,2030.5,2029.6,6.45674402]
[1772123000481,1.37300588,2030.5,2029.6,0.00374402]
[1772123001286,1.37300588,2030.3,2029.6,0.00374402]
[1772123001687,6.453,2030.5,2029.3,7.82774297]
[1772123001688,1.37300588,2030.1,2029.3,7.82774297]
[1772123001882,1.37300588,2030.1,2029.4,1.37474297]
[1772123002085,1.37300588,2030.3,2029.4,1.37474297]
[1772123002789,1.37799934,2030.3,2029.4,1.37897504]
[1772123004184,0.00499346,2030.3,2029.4,1.37897504]
[1772123004684,0.00499346,2030.3,2029.5,1.37474297]
[1772123006580,1.37799934,2030.3,2029.5,1.37474297]
[1772123006785,1.37799934,2030.3,2029.6,1.37474297]
[1772123007885,1.37799934,2030.3,2029.4,1.37897504]
[1772123008581,0.00499346,2030.3,2029.4,1.37897504]
[1772123008782,0.00499346,2030.3,2029.5,1.37474297]
[1772123009583,7.82600588,2030.9,2029.7,1.37474297]
[1772123009788,1.37300588,2030.8,2029.9,1.37474297]
[1772123010684,1.37300588,2030.7,2029.5,1.37474297]
[1772123011892,1.37300588,2030.5,2029.5,1.37474297]
[1772123012790,1.37300588,2030.3,2029.5,1.37474297]
[1772123013992,0.25151435,2030.8,2029.5,1.37474297]
[1772123014293,1.37300588,2030.7,2029.5,1.37474297]
[1772123016289,0.00531435,2030.8,2029.7,1.30826717]
[1772123016594,1.39123928,2030.8,2029.7,1.30826717]
[1772123018800,1.39123928,2030.8,2029.5,1.30826717]
[1772123019495,1.34886002,2030.6,2029.5,1.30826717]
[1772123019895,1.34886002,2030.4,2029.5,1.30826717]
[1772123020589,1.34886002,2030.2,2029.5,1.30826717]
[1772123025201,1.34886002,2030.4,2029.5,1.30826717]
[1772123026797,1.34886002,2030.6,2029.5,1.30826717]
[1772123027299,0.00531435,2030.8,2029.6,1.33596457]
[1772123027505,1.35417437,2030.8,2029.6,1.33596457]
[1772123028400,0.00531435,2030.8,2030.0,1.33596457]
[1772123029297,1.34886002,2031.1,2030.2,1.33596457]
[1772123029700,1.34886002,2031.3,2030.2,1.33596457]
[1772123030606,1.35508725,2031.3,2030.2,1.33596457]
[1772123034209,1.60123725,2031.3,2030.2,1.33596457]
[1772123040113,1.60123725,2031.3,2029.8,0.24631]
[1772123040313,1.60123725,2031.3,2030.0,1.33596457]
[1772123042117,1.34886002,2031.1,2030.0,1.33596457]
[1772123043116,1.34886002,2031.1,2030.2,1.33596457]
[1772123043714,1.34886002,2030.7,2029.8,1.33596457]
[1772123044522,1.34886002,2031.1,2029.8,1.33596457]
[1772123045117,1.34886002,2030.9,2029.8,1.33596457]
[1772123045719,1.34886002,2030.7,2029.8,1.33596457]
[1772123047016,1.34886002,2030.5,2029.5,1.33596457]
[1772123047925,1.34886002,2030.3,2029.4,0.00423207]
[1772123048727,1.34886002,2030.1,2029.4,0.00423207]
[1772123049815,1.34886002,2030.1,2029.4,1.26446555]
[1772123050021,1.3418601,2030.5,2029.4,1.26446555]
[1772123050915,1.3418601,2030.1,2029.4,0.00423207]
[1772123051121,1.3418601,2029.9,2028.7,1.26023348]
[1772123052223,1.3418601,2029.9,2028.7,1.26479327]
[1772123054124,1.3418601,2029.9,2028.9,1.26023348]
[1772123054626,1.3418601,2029.7,2028.7,1.26479327]
[1772123054821,1.34651725,2029.7,2028.7,1.26479327]
[1772123055424,1.34651725,2029.7,2028.7,0.00455979]
[1772123055425,1.3418601,2029.5,2028.7,0.00455979]
[1772123055730,1.3418601,2029.3,2028.3,1.26023348]
[1772123056624,1.3418601,2029.3,2028.3,1.26381174]
[1772123057331,1.3418601,2029.1,2028.3,0.00357826]
[1772123057530,1.3418601,2029.1,2027.8,6.455]
[1772123057531,1.3418601,2029.1,2028.0,1.26023348]
[1772123058534,1.3418601,2029.1,2028.0,1.26606034]
[1772123059236,1.3418601,2029.3,2028.2,1.26023348]
[1772123059934,6.70599715,2029.7,2028.4,1.26023348]
[1772123059935,1.3418601,2029.6,2028.4,1.26023348]
[1772123060137,1.3418601,2029.6,2028.5,1.26023348]
[1772123060336,0.00465715,2029.7,2028.7,1.26023348]
[1772123060930,1.34651725,2029.7,2028.7,1.26023348]
[1772123062128,10.17419396,2030.8,2029.1,1.26023348]
[1772123062129,1.3418601,2030.1,2029.1,1.26023348]
[1772123062732,1.3418601,2030.3,2029.1,1.26023348]
[1772123063034,1.3418601,2030.3,2029.0,0.24641]
[1772123063035,1.3418601,2030.3,2029.3,1.26023348]
[1772123063237,1.34579942,2030.3,2029.3,1.26023348]
[1772123063435,0.00393932,2030.3,2029.5,1.26023348]
[1772123063735,0.00393932,2030.3,2029.5,1.26660055]
[1772123063928,3.33005406,2030.8,2029.5,1.26660055]
[1772123064126,6.456,2031.3,2029.5,1.26660055]
[1772123064127,1.3418601,2030.7,2029.6,0.24634]
[1772123064332,1.3418601,2031.2,2029.7,1.26023348]
[1772123064532,1.3418601,2031.2,2029.6,5.41641121]
[1772123064533,1.3418601,2031.2,2029.9,1.26023348]
[1772123064934,1.3479449,2031.2,2029.9,1.26023348]
[1772123065430,1.3418601,2031.0,2029.9,1.26023348]
[1772123067047,1.3418601,2031.0,2029.7,1.26023348]
[1772123067738,1.3418601,2030.8,2029.7,1.26023348]
[1772123068334,1.3418601,2030.8,2029.9,1.26023348]
[1772123070043,1.3418601,2030.8,2029.7,7.71523348]
[1772123070247,1.3418601,2030.6,2029.5,1.26660055]
[1772123072752,1.26591505,2030.4,2029.5,0.00636707]
[1772123073144,1.26591505,2030.4,2029.5,1.31055075]
[1772123074752,1.26591505,2030.9,2029.5,1.31055075]
[1772123074950,1.26591505,2030.9,2029.7,1.30418368]
[1772123076145,1.26591505,2030.9,2030.0,1.30418368]
[1772123076846,0.0060848,2031.2,2030.0,1.30418368]
[1772123076847,1.26591505,2031.1,2030.0,1.55047368]
[1772123082656,0.0060848,2031.2,2030.3,1.27046338]
[1772123082860,0.0060848,2031.2,2030.5,1.27046338]
[1772123083358,1.30659008,2031.7,2030.6,1.27046338]
[1772123083557,1.30659008,2031.7,2030.9,1.27046338]
[1772123084055,1.30659008,2032.4,2031.5,1.27046338]
[1772123084454,1.31120441,2032.4,2031.6,1.27046338]
[1772123084654,1.30659008,2032.7,2031.8,1.27046338]
[1772123085052,1.30659008,2032.7,2031.9,1.27046338]
[1772123085260,1.30659008,2032.8,2031.9,1.27046338]
[1772123085449,1.30659008,2032.8,2031.6,1.27046338]
[1772123085654,0.24597,2032.7,2031.5,6.45645295]
[1772123085856,1.30659008,2032.6,2031.5,0.00345295]
[1772123086156,7.88817263,2032.8,2031.5,0.00345295]
[1772123086157,1.30659008,2032.4,2031.5,0.00345295]
[1772123086355,1.30659008,2032.4,2031.5,1.27391633]
[1772123087259,1.30659008,2032.4,2031.5,0.00345295]
[1772123088555,1.30659008,2032.2,2031.0,1.27046338]
[1772123088756,1.30659008,2032.0,2031.0,1.27046338]
[1772123089159,1.30659008,2032.2,2031.0,1.27046338]
[1772123089552,1.30659008,2032.2,2031.0,1.27612404]
[1772123090257,1.30659008,2032.0,2031.0,1.27612404]
[1772123093060,1.30659008,2031.8,2031.0,0.00566066]
[1772123094164,1.30659008,2031.8,2031.0,1.27612404]
[1772123095465,1.30659008,2032.3,2031.0,1.27612404]
[1772123096361,1.30659008,2032.3,2031.2,1.27046338]
[1772123096757,1.30659008,2032.6,2031.3,1.51659338]
[1772123096964,1.30659008,2032.6,2031.6,1.27046338]
[1772123098161,1.30659008,2032.4,2031.2,1.27046338]
[1772123098366,6.45,2032.7,2031.2,1.27046338]
[1772123098367,1.30659008,2032.2,2031.2,1.27046338]
[1772123099564,1.30659008,2032.2,2031.0,1.27612404]
[1772123099767,1.30659008,2032.0,2031.0,1.27612404]
[1772123100567,1.30659008,2032.5,2031.0,1.27612404]
[1772123100761,0.24599,2032.6,2031.5,1.27046338]
[1772123100762,1.30659008,2032.6,2031.5,1.27046338]
[1772123101560,0.00390272,2032.8,2031.7,1.27046338]
[1772123101561,1.3104928,2032.8,2031.7,1.27046338]
[1772123104269,1.3104928,2032.8,2031.4,1.27046338]
[1772123104270,1.30659008,2032.6,2031.4,1.27046338]
[1772123104573,1.3104928,2032.8,2031.6,1.27046338]
[1772123104967,1.3104928,2032.8,2031.5,1.83346991]
[1772123104968,0.00390272,2032.8,2031.8,1.27046338]
[1772123105167,0.00390272,2032.8,2032.0,1.27046338]
[1772123105375,1.30659008,2033.6,2032.5,1.27046338]
[1772123105575,1.30659008,2033.6,2032.7,1.27046338]
[1772123105968,1.30659008,2033.6,2032.5,1.27046338]
[1772123106172,1.30659008,2033.5,2032.5,1.27046338]
[1772123106576,1.30659008,2033.3,2032.5,0.00448521]
[1772123106881,0.24593,2033.0,2031.9,1.27046338]
[1772123107069,1.30659008,2032.9,2031.9,1.27046338]
[1772123107273,1.30659008,2032.8,2031.9,1.27046338]
[1772123108078,1.30659008,2032.8,2031.9,1.27507951]
[1772123108680,1.30659008,2032.6,2031.9,0.00461613]
[1772123110678,1.30659008,2032.6,2031.9,1.0890436]
[1772123110874,1.30659008,2032.6,2031.9,0.00461613]
[1772123111080,1.14550482,2032.2,2031.0,1.08442747]
[1772123111380,0.24604,2032.1,2031.0,1.08442747]
[1772123111580,1.14550482,2032.2,2031.0,1.33059747]
[1772123112175,1.14550482,2032.2,2031.0,1.33475291]
[1772123113278,6.448,2032.5,2031.0,0.00415544]
[1772123113279,2.97897473,2031.9,2031.0,0.00415544]
[1772123113475,1.14550482,2031.7,2030.6,1.08442747]
[1772123114375,0.00411049,2031.7,2031.1,1.08442747]
[1772123114574,1.14550482,2032.4,2031.1,1.08442747]
[1772123114773,6.448,2032.5,2031.3,1.08442747]
[1772123114979,6.448,2032.5,2031.4,1.08442747]
[1772123115180,7.59350482,2032.5,2031.4,1.08442747]
[1772123115376,1.14550482,2032.4,2031.4,1.08442747]
[1772123115777,0.00505176,2032.4,2031.4,1.08442747]
[1772123116273,1.39656658,2032.4,2031.4,1.08442747]
[1772123116674,1.39656658,2032.4,2031.2,1.08442747]
[1772123119479,1.14550482,2032.2,2031.0,1.08442747]
[1772123121986,1.14550482,2032.3,2031.3,1.08442747]
[1772123122690,1.14550482,2032.1,2031.3,1.08442747]
[1772123123481,1.14550482,2032.1,2030.9,6.449]
[1772123123482,1.14550482,2032.1,2031.1,1.08442747]
[1772123125194,1.14550482,2032.1,2030.9,7.53342747]
[1772123125395,1.14550482,2031.7,2030.7,1.08442747]
[1772123125998,1.39160482,2031.7,2030.7,1.08442747]
[1772123127491,1.39160482,2031.7,2030.6,0.00589103]
[1772123127695,1.14550482,2031.3,2030.6,0.00589103]
[1772123128102,1.14550482,2031.3,2030.6,1.0903185]
[1772123128395,1.14550482,2031.8,2030.6,1.0903185]
[1772123129302,6.449,2032.0,2030.6,1.0903185]
[1772123129303,1.14550482,2031.6,2030.6,1.0903185]
[1772123129801,1.14550482,2031.4,2030.6,0.00589103]
[1772123130698,7.59450482,2031.4,2030.6,0.00589103]
[1772123130898,1.14550482,2031.3,2030.6,0.00589103]
[1772123131799,1.14550482,2030.9,2030.0,1.08442747]
[1772123132701,1.15116121,2030.9,2030.0,1.08840312]
[1772123132901,1.14550482,2030.7,2030.0,0.00397565]
[1772123133097,1.14550482,2030.7,2030.0,1.08840312]
[1772123133504,1.15116121,2030.9,2030.0,1.08840312]
[1772123134100,0.00565639,2030.9,2030.0,1.08840312]
[1772123134804,1.15116121,2030.9,2030.0,1.08840312]
[1772123135507,0.00565639,2030.9,2030.0,1.08840312]
[1772123135807,1.09085406,2031.3,2030.2,0.98963888]
[1772123136601,1.09085406,2031.7,2030.4,0.98963888]
[1772123136907,1.09085406,2031.5,2030.4,0.98963888]
[1772123139805,1.06550922,2031.3,2030.2,1.00342793]
[1772123140408,0.24617,2031.0,2030.0,1.00740358]
[1772123140609,1.06550922,2030.9,2030.0,1.00740358]
[1772123140808,1.06550922,2030.9,2030.0,0.00397565]
[1772123141112,1.06550922,2030.7,2030.0,0.00397565]
[1772123142211,1.06550922,2030.7,2029.6,1.00342793]
[1772123143209,0.2462,2030.8,2029.6,1.00342793]
[1772123143210,1.06550922,2030.5,2029.6,1.00782654]
[1772123148519,1.06550922,2030.7,2029.6,1.00782654]